fUST/lending_fUST_20240805
["ID","MTS","AMOUNT","RATE_DAILY","PERIOD"]
[334204823,1722838255106,-500.0,0.00041095,31]
[334204824,1722838255116,-457.975305,0.00041095,14]
[334204825,1722838255126,-500.0,0.00041095,31]
[334204826,1722838255145,-457.975305,0.00041095,14]
[334204827,1722838255155,-457.975305,0.00041095,14]
[334204828,1722838255165,-457.975305,0.00041095,14]
[334204829,1722838255176,-500.0,0.00041095,31]
[334204830,1722838255185,-457.975301,0.00041095,14]
[334204831,1722838255195,-595.58,0.00041095,31]
[334204832,1722838255204,-500.0,0.00041095,31]
[334204833,1722838255214,-500.0,0.00041095,31]
[334204834,1722838255226,-500.0,0.00041095,31]
[334204835,1722838255237,-500.0,0.00041095,31]
[334204836,1722838255248,-151.0,0.00041095,14]
[334204837,1722838255258,-151.0,0.00041095,14]
[334204838,1722838255268,-507.44226916,0.00041095,31]
[334204839,1722838255278,-189.151492,0.00041095,14]
[334204840,1722838255288,-500.0,0.00041095,31]
[334204841,1722838255297,-1547.36,0.00041095,31]
[334204842,1722838255307,-500.0,0.00041095,31]
[334204843,1722838255316,-500.0,0.00041095,31]
[334204844,1722838255327,-500.0,0.00041095,31]
[334204845,1722838255336,-554.96866896,0.00041095,31]
[334204846,1722838255346,-500.0,0.00041095,31]
[334204847,1722838255356,-500.0,0.00041095,31]
[334204848,1722838255366,-500.0,0.00041095,31]
[334204849,1722838255376,-500.0,0.00041095,31]
[334204850,1722838255386,-500.0,0.00041095,31]
[334204851,1722838255396,-500.0,0.00041095,31]
[334204852,1722838255406,-1908.32,0.00041095,31]
[334204853,1722838255415,-500.0,0.00041095,31]
[334204854,1722838255425,-500.0,0.00041095,31]
[334204855,1722838255435,-429.274796,0.00041095,14]
[334204856,1722838255444,-429.274796,0.00041095,14]
[334204857,1722838255455,-501.64490805,0.00041095,31]
[334204858,1722838255465,-429.274796,0.00041095,14]
[334204859,1722838255475,-429.274796,0.00041095,14]
[334204860,1722838255485,-429.274796,0.00041095,14]
[334204861,1722838255494,-205.64232317,0.00041095,31]
[334204862,1722838255503,-500.0,0.00041095,31]
[334204863,1722838255513,-429.274796,0.00041095,14]
[334204864,1722838255523,-429.274796,0.00041095,14]
[334204865,1722838255532,-429.274796,0.00041095,14]
[334204866,1722838255542,-429.274796,0.00041095,14]
[334204867,1722838255552,-429.274796,0.00041095,14]
[334204868,1722838255561,-429.274796,0.00041095,14]
[334204869,1722838255571,-429.274796,0.00041095,14]
[334204870,1722838255580,-500.0,0.00041095,31]
[334204871,1722838255590,-266.012406,0.00041095,14]
[334204872,1722838255599,-429.274796,0.00041095,14]
[334204873,1722838255609,-991.06,0.00041095,31]
[334204874,1722838255618,-266.012406,0.00041095,14]
[334204875,1722838255629,-500.0,0.00041095,31]
[334204876,1722838255639,-429.274797,0.00041095,14]
[334204877,1722838255648,-266.012406,0.00041095,14]
[334204878,1722838255657,-266.012406,0.00041095,14]
[334204879,1722838255667,-266.012406,0.00041095,14]
[334204880,1722838255676,-500.0,0.00041095,31]
[334204881,1722838255686,-500.0,0.00041095,31]
[334204882,1722838255696,-500.0,0.00041095,31]
[334204883,1722838255706,-500.0,0.00041095,31]
[334204884,1722838255715,-500.0,0.00041095,31]
[334204885,1722838255725,-266.012406,0.00041095,14]
[334204886,1722838255736,-500.0,0.00041095,31]
[334204887,1722838255745,-266.012406,0.00041095,14]
[334204888,1722838255755,-500.0,0.00041095,31]
[334204889,1722838255765,-266.012406,0.00041095,14]
[334204890,1722838255775,-266.012406,0.00041095,14]
[334204891,1722838255786,-266.012414,0.00041095,14]
[334204892,1722838255796,-500.0,0.00041095,31]
[334204893,1722838255806,-500.0,0.00041095,31]
[334204894,1722838255815,-500.0,0.00041095,31]
[334204895,1722838255824,-503.62779449,0.00041095,31]
[334204896,1722838255834,-500.0,0.00041095,31]
[334204897,1722838255843,-500.0,0.00041095,31]
[334204898,1722838255853,-500.0,0.00041095,31]
[334204899,1722838255863,-426.58624997,0.00041095,31]
[334204911,1722838434695,5000.0,0.00027,120]
[334204912,1722838442992,5000.0,0.00027,120]
[334204913,1722838451714,5000.0,0.00027,120]
[334204915,1722838460406,5000.0,0.00027,120]
[334204916,1722838468591,5000.0,0.00027,120]
[334204917,1722838476559,5000.0,0.00027,120]
[334204930,1722838633316,190.0,0.0002609,120]
[334204931,1722838633452,224.16,0.0002609,120]
[334204932,1722838633865,190.0,0.0002608,120]
[334204933,1722838634911,186.0,0.0002609,120]
[334204934,1722838635308,186.0,0.0002608,120]
[334204935,1722838635814,186.0,0.0002607,120]
[334204936,1722838642742,190.0,0.0002607,120]
[334204945,1722838754692,150.5,0.0002169,120]
[334204946,1722838755160,150.5,0.0002168,120]
[334204947,1722838755711,150.5,0.0002167,120]
[334204953,1722838874571,150.5,0.00021572,120]
[334204954,1722838874623,150.5,0.00021572,120]
[334204955,1722838875037,150.5,0.00021562,120]
[334204956,1722838875120,150.5,0.00021562,120]
[334204957,1722838875714,150.5,0.00021552,120]
[334204958,1722838875759,150.5,0.00021552,120]
[334204975,1722838994709,150.5,0.00021542,120]
[334204976,1722838995435,255.74,0.00021532,120]
[334204985,1722839115259,150.5,0.00020991,120]
[334204986,1722839115715,150.5,0.00020981,120]
[334204987,1722839116165,150.5,0.00020971,120]
[334204990,1722839135215,-162.64443769,9.414e-05,2]
[334204991,1722839135238,-9354.23071462,9.8e-05,2]
[334204992,1722839135261,-300.0,9.83e-05,2]
[334204993,1722839135283,-300.0,9.83e-05,2]
[334204994,1722839135304,-788.1851205,9.831e-05,2]
[334204995,1722839135327,-533.30474126,9.999e-05,2]
[334204996,1722839135349,-533.92328189,9.999e-05,2]
[334204997,1722839135373,-161.648621,0.00010536,2]
[334204998,1722839135405,-161.648621,0.0001059,2]
[334204999,1722839135435,-161.648621,0.00010645,2]
[334205000,1722839135461,-161.648621,0.000107,2]
[334205001,1722839135486,-161.648621,0.00010755,2]
[334205002,1722839135512,-161.648621,0.0001081,2]
[334205003,1722839135536,-420.0,0.00010813,2]
[334205004,1722839135558,-420.0,0.00010813,2]
[334205005,1722839135584,-161.648621,0.00010865,2]
[334205006,1722839135608,-161.648621,0.0001092,2]
[334205007,1722839135632,-154.62,0.00010959,2]
[334205008,1722839135660,-24900.0,0.00010965,2]
[334205009,1722839135687,-161.648621,0.00010975,2]
[334205010,1722839135712,-161.648621,0.0001103,2]
[334205011,1722839135738,-161.648621,0.00011085,2]
[334205012,1722839135763,-587.0,0.00011894,2]
[334205013,1722839135787,-587.0,0.00011894,2]
[334205014,1722839135812,-823.0,0.00013083,2]
[334205015,1722839135848,-720.0,0.00013083,2]
[334205016,1722839135873,-262.96385452,0.00013698,2]
[334205017,1722839135897,-485.75391823,0.00013698,2]
[334205018,1722839135919,-251.62794152,0.00013698,2]
[334205019,1722839135944,-270.26495792,0.00013698,2]
[334205020,1722839135967,-157.2737572,0.00013698,2]
[334205021,1722839135991,-500.0,0.00013698,2]
[334205022,1722839136015,-500.0,0.00013698,2]
[334205023,1722839136039,-500.0,0.00013698,2]
[334205024,1722839136062,-208.91614245,0.00013698,2]
[334205025,1722839136087,-500.0,0.00013698,2]
[334205026,1722839136197,-500.0,0.00013698,2]
[334205027,1722839136231,-500.0,0.00013698,2]
[334205028,1722839136256,-500.0,0.00013698,2]
[334205029,1722839136278,-340.3649154,0.00013698,2]
[334205030,1722839136302,-174.68877284,0.00013698,2]
[334205031,1722839136325,-500.0,0.00013698,2]
[334205032,1722839136349,-512.88387693,0.00013698,2]
[334205033,1722839136373,-423.535423,0.00013699,2]
[334205034,1722839136401,-3000.0,0.00013699,2]
[334205035,1722839136424,-309.6623082,0.00013699,2]
[334205036,1722839136452,-608.52507739,0.00013699,2]
[334205037,1722839136476,-541.26580199,0.00013699,2]
[334205038,1722839136501,-500.0,0.00013699,2]
[334205039,1722839136525,-166.577672,0.00014247,2]
[334205040,1722839136549,-259.16122,0.00014247,2]
[334205041,1722839136574,-833.0,0.00014392,2]
[334205042,1722839136598,-4256.82172642,0.00015254,2]
[334205043,1722839136622,-28642.0560967,0.00015699,2]
[334205044,1722839136647,-41520.59273533,0.00015709,2]
[334205050,1722839210127,-3286.94336084,9.8e-05,2]
[334205051,1722839210149,-273.37336231,9.9e-05,2]
[334205052,1722839210171,-2003.6,0.000153,2]
[334205053,1722839210192,-821.12117603,0.00015709,2]
[334205054,1722839210214,-1663.72251705,0.00015709,2]
[334205055,1722839234536,150.5,0.00021522,120]
[334205056,1722839235030,150.5,0.00021512,120]
[334205057,1722839235468,150.5,0.00021502,120]
[334205058,1722839236688,-1169.561694,0.00015709,2]
[334205059,1722839236713,-189.82749556,0.00015709,2]
[334205060,1722839236749,-154.77557542,0.00015709,2]
[334205061,1722839236863,-1751.39413781,0.00015709,2]
[334205062,1722839236889,-9678.40661042,0.00015709,2]
[334205063,1722839236911,-10268.61267832,0.00015709,2]
[334205064,1722839236934,-154.77557542,0.00015709,2]
[334205065,1722839236956,-1669.01055043,0.00015709,2]
[334205066,1722839236987,-158.48348286,0.00015709,2]
[334205067,1722839237012,-220.67854838,0.00015709,2]
[334205068,1722839237035,-6093.57553268,0.00015709,2]
[334205069,1722839237058,-3000.0,0.00016955,2]
[334205070,1722839237080,-2095.57130531,0.00017684,2]
[334205071,1722839237104,-300.99068249,0.00017785,2]
[334205072,1722839237127,-24900.0,0.00017786,2]
[334205073,1722839237148,-200.0,0.00017808,2]
[334205074,1722839237171,-1431.05485806,0.000179,2]
[334205075,1722839237193,-309.59758575,0.00018,2]
[334205076,1722839237215,-1043.4993394,0.00018,2]
[334205077,1722839237250,-205.52953509,0.00018,2]
[334205078,1722839237273,-377.992471,0.0001845,2]
[334205079,1722839237296,-157.729626,0.0001845,2]
[334205080,1722839237318,-157.559926,0.0001845,2]
[334205081,1722839237340,-764.041092,0.0001845,2]
[334205082,1722839237365,-660.458132,0.0001845,2]
[334205083,1722839237388,-157.729626,0.0001845,2]
[334205084,1722839237410,-566.988706,0.0001845,2]
[334205085,1722839237436,-688.410114,0.0001845,2]
[334205086,1722839237459,-1066.3887416,0.00018667,2]
[334205087,1722839240235,-1058.12739841,0.00018667,2]
[334205088,1722839240258,-377.992471,0.00018681,2]
[334205089,1722839240280,-764.041092,0.00018681,2]
[334205090,1722839240302,-660.458132,0.00018681,2]
[334205091,1722839240324,-566.988706,0.00018681,2]
[334205092,1722839240346,-688.410114,0.00018681,2]
[334205093,1722839240368,-336.1881449,0.00018899,2]
[334205094,1722839240389,-240.82219567,0.0001891,2]
[334205095,1722839240496,-458.940076,0.00018911,2]
[334205096,1722839240528,-377.992471,0.00018911,2]
[334205097,1722839240553,-764.041092,0.00018911,2]
[334205098,1722839240579,-660.458132,0.00018911,2]
[334205099,1722839240602,-566.988706,0.00018911,2]
[334205100,1722839240626,-688.410114,0.00018911,2]
[334205101,1722839240649,-209.20156569,0.0001895,2]
[334205102,1722839240676,-849.39914621,0.00018999,2]
[334205103,1722839240699,-154.72922386,0.00018999,2]
[334205104,1722839240722,-679.44574152,0.00018999,2]
[334205105,1722839240745,-250.0,0.00019041,2]
[334205106,1722839240768,-458.940076,0.00019142,2]
[334205107,1722839240792,-377.992471,0.00019142,2]
[334205108,1722839240814,-764.041092,0.00019142,2]
[334205109,1722839240836,-660.458132,0.00019142,2]
[334205110,1722839240860,-566.988706,0.00019142,2]
[334205111,1722839240882,-688.410114,0.00019142,2]
[334205112,1722839240904,-171.607001,0.00019178,2]
[334205113,1722839240927,-200.728217,0.00019178,2]
[334205114,1722839240949,-458.940076,0.00019373,2]
[334205115,1722839240972,-377.992471,0.00019373,2]
[334205116,1722839241005,-764.041092,0.00019373,2]
[334205117,1722839241033,-660.458132,0.00019373,2]
[334205118,1722839241056,-688.410114,0.00019373,2]
[334205119,1722839241078,-566.988706,0.00019373,2]
[334205120,1722839241099,-1162.86940617,0.00019451,2]
[334205121,1722839241122,-35012.4181319,0.00019451,2]
[334205122,1722839241146,-3087.63872233,0.00019451,2]
[334205123,1722839241168,-950.99937571,0.00019451,2]
[334205124,1722839241985,-1188.16883923,0.00019451,2]
[334205125,1722839242008,-277.18370616,0.00019477,2]
[334205126,1722839242032,-20759.5327798,0.00019547,2]
[334205127,1722839242055,-7001.77703298,0.00019547,2]
[334205128,1722839242078,-1991.65402436,0.00019547,2]
[334205129,1722839242101,-1794.59755427,0.00019547,2]
[334205130,1722839242124,-2162.60520141,0.00019547,2]
[334205131,1722839242147,-727.58928536,0.00019547,2]
[334205132,1722839242170,-1431.05485802,0.00019575,2]
[334205133,1722839242191,-1610.68802731,0.00019999,2]
[334205134,1722839242213,-951.80625463,0.00019999,2]
[334205135,1722839242234,-296.95255386,0.00019999,2]
[334205136,1722839242276,-523.10973974,0.00019999,2]
[334205137,1722839242297,-942.68890731,0.00019999,2]
[334205138,1722839242318,-156.35315554,0.0002,2]
[334205139,1722839242340,-150.112233,0.0002,2]
[334205140,1722839242362,-825.71908644,0.0002,2]
[334205141,1722839242387,-1061.01164336,0.0002,2]
[334205142,1722839242408,-287.79610663,0.0002028,2]
[334205143,1722839242432,-1363.34392567,0.0002028,2]
[334205144,1722839242454,-1500.0,0.0002028,2]
[334205145,1722839242480,-1500.0,0.0002028,2]
[334205146,1722839242502,-1632.70804043,0.0002028,2]
[334205147,1722839242526,-154.74467129,0.0002028,2]
[334205148,1722839242548,-423.535423,0.00020548,2]
[334205149,1722839242574,-259.16122,0.00020707,2]
[334205150,1722839242599,-600.90391779,0.00020721,2]
[334205151,1722839242624,-600.90391779,0.00020721,2]
[334205152,1722839242646,-163.08091826,0.00020721,2]
[334205153,1722839242670,-154.74467129,0.00020721,2]
[334205154,1722839242692,-159.36939656,0.00020998,2]
[334205156,1722839242717,-500.0,0.00020998,2]
[334205157,1722839242747,-500.0,0.00020998,2]
[334205158,1722839242774,-500.0,0.00020998,2]
[334205159,1722839242881,-500.0,0.00020998,2]
[334205160,1722839242905,-500.0,0.00020998,2]
[334205161,1722839242929,-500.0,0.00020998,2]
[334205162,1722839242952,-500.0,0.00020998,2]
[334205163,1722839242976,-500.0,0.00020998,2]
[334205164,1722839243000,-500.0,0.00020998,2]
[334205165,1722839243024,-500.0,0.00020998,2]
[334205166,1722839243049,-196.17105402,0.00020998,2]
[334205167,1722839243071,-294.09032939,0.00020999,2]
[334205168,1722839243094,-205.20449904,0.00020999,2]
[334205169,1722839243117,-156.74439841,0.00020999,2]
[334205170,1722839243145,-845.54644341,0.00020999,2]
[334205171,1722839243167,-5827.126918,0.00021,2]
[334205172,1722839243191,-28642.0560967,0.00021001,3]
[334205173,1722839243213,-695.1835415,0.00021011,2]
[334205174,1722839243240,-426.99038561,0.00021011,2]
[334205175,1722839243269,-183.12142007,0.00021011,2]
[334205176,1722839243294,-426.99038561,0.00021011,2]
[334205177,1722839243317,-1715.68394884,0.00021011,2]
[334205178,1722839243339,-154.74467129,0.00021011,2]
[334205179,1722839243364,-196.48473354,0.00021011,2]
[334205180,1722839243390,-8904.54548408,0.00021038,3]
[334205181,1722839246206,-9642.56191171,0.00019999,2]
[334205182,1722839246229,-269.69558364,0.0002028,2]
[334205183,1722839246265,-154.74467129,0.00021011,2]
[334205184,1722839246293,-7992.75161436,0.00021038,3]
[334205186,1722839251335,-154.74467129,0.00018999,2]
[334205187,1722839251357,-7001.77703298,0.00019477,2]
[334205188,1722839251379,-845.54644341,0.00020721,2]
[334205189,1722839251402,-11744.75899826,0.00021038,3]
[334205190,1722839251426,-2278.204521,0.00021048,3]
[334205191,1722839251448,-892.05411216,0.00021048,2]
[334205192,1722839251474,-1438.29474334,0.00021048,2]
[334205193,1722839251503,-174.54270234,0.00021048,2]
[334205194,1722839251528,-174.54270234,0.00021048,2]
[334205195,1722839251550,-188.24924053,0.00021048,2]
[334205196,1722839251572,-2848.79958348,0.00021048,2]
[334205197,1722839251594,-1382.92970052,0.00021048,2]
[334205198,1722839251615,-1091.69139402,0.00021048,2]
[334205199,1722839251636,-254.97505895,0.00021048,2]
[334205200,1722839251658,-165.54898858,0.00021048,2]
[334205201,1722839251681,-1431.05485802,0.0002125,2]
[334205202,1722839251703,-154.74467129,0.0002142,2]
[334205203,1722839251726,-194.58009581,0.0002142,2]
[334205204,1722839251760,-369.99091881,0.00021499,2]
[334205205,1722839251787,-126092.86284783,0.00021532,2]
[334205206,1722839251811,-8024.99664677,0.00021532,2]
[334205207,1722839251834,-154.77557542,0.00021532,15]
[334205208,1722839251857,-15881.80961739,0.00021532,2]
[334205209,1722839251880,-766.92866046,0.00021532,2]
[334205210,1722839252435,-500.0,0.00020998,2]
[334205211,1722839252486,-500.0,0.00020998,2]
[334205212,1722839252536,-224.49149689,0.00020998,2]
[334205213,1722839252574,-858.88897489,0.00021532,2]
[334205214,1722839252612,-154.72922386,0.00021532,2]
[334205215,1722839252647,-808.0041696,0.00021532,2]
[334205216,1722839252685,-3878.93426889,0.00021532,2]
[334205217,1722839252722,-573.15262334,0.00021542,2]
[334205218,1722839252768,-114568.224387,0.00021542,3]
[334205219,1722839252806,-28642.0560967,0.00021579,3]
[334205220,1722839252843,-100000.0,0.00021589,2]
[334205221,1722839252880,-522.32545193,0.00021599,2]
[334205222,1722839252916,-494.27988772,0.00021599,2]
[334205223,1722839252955,-28642.0560967,0.00021622,3]
[334205224,1722839252991,-154.74467129,0.00021632,2]
[334205225,1722839253036,-154.74467129,0.00021632,2]
[334205227,1722839253074,-154.74467129,0.00021632,2]
[334205228,1722839253113,-154.79103211,0.00021632,2]
[334205229,1722839253150,-154.74467129,0.00021632,2]
[334205230,1722839253185,-154.77557542,0.00021642,2]
[334205231,1722839253347,-1075.37290151,0.00021705,2]
[334205232,1722839253387,-319.75385853,0.00021805,2]
[334205233,1722839253409,-156.61103376,0.00021805,2]
[334205234,1722839253435,-154.83742071,0.00021805,2]
[334205235,1722839253458,-154.83742071,0.00021805,2]
[334205236,1722839253484,-156.8188046,0.00021805,2]
[334205237,1722839253513,-154.89435374,0.00021805,2]
[334205238,1722839253537,-196.74507213,0.00021805,2]
[334205239,1722839253562,-342.40195505,0.00021906,2]
[334205240,1722839253584,-154.72922386,0.00021906,2]
[334205241,1722839253605,-181.8591033,0.00021906,2]
[334205242,1722839253628,-154.72922386,0.00021906,2]
[334205243,1722839253650,-664.23911189,0.00021906,2]
[334205244,1722839253672,-305.42819777,0.00021906,2]
[334205245,1722839253694,-280.37012538,0.00021906,2]
[334205246,1722839253716,-160.1642143,0.00021906,2]
[334205247,1722839253738,-154.83742071,0.00021906,2]
[334205248,1722839253770,-342.05014288,0.00021906,2]
[334205249,1722839253792,-201.4920041,0.00021906,2]
[334205250,1722839253815,-156.02963346,0.00021906,2]
[334205251,1722839253839,-779.66389887,0.00021906,2]
[334205252,1722839253862,-154.83742071,0.00021906,2]
[334205253,1722839253883,-157.81947129,0.00021906,2]
[334205254,1722839253907,-274.44831486,0.00021906,2]
[334205255,1722839253930,-568.56884199,0.00021906,2]
[334205256,1722839253956,-209.86849569,0.00021906,2]
[334205257,1722839253982,-154.83742071,0.00021906,2]
[334205258,1722839254018,-154.83742071,0.00021906,2]
[334205259,1722839254044,-404.2656183,0.00021906,2]
[334205260,1722839254068,-413.73440189,0.00021906,2]
[334205261,1722839254093,-244.84557874,0.00021906,2]
[334205262,1722839254118,-154.72922386,0.00021916,2]
[334205263,1722839254144,-519.59956575,0.00021916,2]
[334205264,1722839254178,-154.72922386,0.00021916,2]
[334205265,1722839254208,-6191.71,0.00022,14]
[334205266,1722839254236,-289.84,0.00022,7]
[334205267,1722839254261,-302.48582854,0.00022,2]
[334205268,1722839254287,-2095.57130527,0.00022188,2]
[334205269,1722839254311,-302.48582854,0.0002222,2]
[334205270,1722839254336,-302.48582854,0.0002244,2]
[334205271,1722839254361,-302.48582854,0.0002266,2]
[334205272,1722839254388,-302.48582854,0.0002288,2]
[334205273,1722839254414,-1431.05485802,0.00022925,2]
[334205274,1722839254443,-800.06,0.00023,14]
[334205275,1722839254468,-200.0,0.00023,2]
[334205276,1722839254513,-453.72874281,0.000231,4]
[334205277,1722839254540,-453.72874281,0.0002332,4]
[334205278,1722839254565,-453.72874281,0.0002354,4]
[334205279,1722839254590,-150.112233,0.000237,4]
[334205280,1722839254615,-453.72874281,0.0002376,4]
[334205281,1722839254639,-453.72874281,0.0002398,4]
[334205282,1722839254663,-200.0,0.00024081,2]
[334205283,1722839254691,-166.577672,0.00024475,2]
[334205284,1722839254716,-1431.05485802,0.000246,2]
[334205285,1722839254740,-380.0,0.00024658,2]
[334205286,1722839254769,-200.0,0.00024658,15]
[334205287,1722839254800,-443.45,0.000247,31]
[334205288,1722839254830,-443.45,0.000247,31]
[334205289,1722839254858,-443.45,0.000247,31]
[334205290,1722839254885,-443.45,0.000247,31]
[334205291,1722839254913,-443.45,0.000247,31]
[334205292,1722839254942,-443.45,0.000247,31]
[334205293,1722839254970,-443.45,0.000247,31]
[334205294,1722839255007,-443.45,0.000247,31]
[334205295,1722839255034,-443.45,0.000247,31]
[334205296,1722839255065,-443.45,0.000247,31]
[334205297,1722839255093,-443.45,0.000247,31]
[334205298,1722839255121,-443.45,0.000247,31]
[334205299,1722839255147,-443.45,0.000247,31]
[334205300,1722839255174,-443.45,0.000247,31]
[334205301,1722839255201,-443.45,0.000247,31]
[334205302,1722839255229,-443.45,0.000247,31]
[334205303,1722839255255,-443.45,0.000247,31]
[334205304,1722839255283,-443.45,0.000247,31]
[334205305,1722839255311,-443.45,0.000247,31]
[334205306,1722839255339,-443.45,0.000247,31]
[334205307,1722839255361,-151.0,0.00025,7]
[334205308,1722839255516,-154.82195475,0.00025,2]
[334205309,1722839255538,-21319.88084892,0.00025,30]
[334205310,1722839255564,-282.528865,0.00025,7]
[334205311,1722839255587,-282.528865,0.00025,7]
[334205312,1722839255609,-151.0,0.00025,7]
[334205313,1722839255634,-220.77333,0.00025,7]
[334205314,1722839255656,-151.0,0.00025,7]
[334205315,1722839255680,-220.77333,0.00025,7]
[334205316,1722839255705,-196.697996,0.00025,7]
[334205317,1722839255730,-196.697996,0.00025,7]
[334205318,1722839255769,-443.45,0.000252,31]
[334205319,1722839255797,-443.45,0.000252,31]
[334205320,1722839255824,-443.45,0.000252,31]
[334205321,1722839255851,-443.45,0.000252,31]
[334205322,1722839255879,-443.45,0.000252,31]
[334205323,1722839255906,-443.45,0.000252,31]
[334205324,1722839255934,-443.45,0.000252,31]
[334205325,1722839255962,-443.45,0.000252,31]
[334205326,1722839255990,-443.45,0.000252,31]
[334205327,1722839256025,-443.45,0.000252,31]
[334205328,1722839256053,-443.45,0.000252,31]
[334205329,1722839256080,-443.45,0.000252,31]
[334205330,1722839256107,-443.45,0.000252,31]
[334205331,1722839256137,-443.45,0.000252,31]
[334205332,1722839256165,-443.45,0.000252,31]
[334205333,1722839256192,-443.45,0.000252,31]
[334205334,1722839256218,-443.45,0.000252,31]
[334205335,1722839256244,-443.45,0.000252,31]
[334205336,1722839256279,-443.45,0.000252,31]
[334205337,1722839256305,-443.45,0.000252,31]
[334205338,1722839256332,-443.45,0.000257,31]
[334205339,1722839256359,-443.45,0.000257,31]
[334205340,1722839256385,-443.45,0.000257,31]
[334205341,1722839256414,-443.45,0.000257,31]
[334205342,1722839256446,-443.45,0.000257,31]
[334205343,1722839256478,-443.45,0.000257,31]
[334205344,1722839256519,-443.45,0.000257,31]
[334205345,1722839256551,-443.45,0.000257,31]
[334205346,1722839256580,-443.45,0.000257,31]
[334205347,1722839256610,-443.45,0.000257,31]
[334205348,1722839256643,-443.45,0.000257,31]
[334205349,1722839256677,-443.45,0.000257,31]
[334205350,1722839256707,-443.45,0.000257,31]
[334205351,1722839256738,-443.45,0.000257,31]
[334205352,1722839256774,-443.45,0.000257,31]
[334205353,1722839256803,-443.45,0.000257,31]
[334205354,1722839256830,-443.45,0.000257,31]
[334205355,1722839256858,-443.45,0.000257,31]
[334205356,1722839256886,-443.45,0.000257,31]
[334205357,1722839256914,-443.45,0.000257,31]
[334205358,1722839256938,-1000.5,0.00026,31]
[334205359,1722839256963,-500.5,0.00026,31]
[334205360,1722839256989,-362.0,0.00026,31]
[334205361,1722839257022,-749.396469,0.0002606,7]
[334205362,1722839257046,-151.0,0.0002606,7]
[334205363,1722839257070,-749.396469,0.0002606,7]
[334205364,1722839257093,-151.0,0.0002606,7]
[334205365,1722839257115,-151.0,0.0002606,7]
[334205366,1722839257138,-151.0,0.0002606,7]
[334205367,1722839257161,-346.09,0.0002607,2]
[334205368,1722839257183,-363.76476106,0.0002607,2]
[334205369,1722839257206,-155.59865243,0.0002607,2]
[334205370,1722839257230,-154.72922386,0.00026099,2]
[334205371,1722839257261,-154.71377951,0.00026099,2]
[334205372,1722839257283,-250.3410689,0.00026099,2]
[334205373,1722839257307,-151.0,0.000261,7]
[334205374,1722839257330,-269.367342,0.000261,7]
[334205375,1722839257354,-151.0,0.000261,7]
[334205376,1722839257377,-289.84,0.000261,7]
[334205377,1722839257399,-471.97795,0.000261,7]
[334205378,1722839257423,-471.97795,0.000261,7]
[334205379,1722839257452,-151.0,0.000261,7]
[334205380,1722839257476,-151.0,0.000261,7]
[334205381,1722839257508,-195.517897,0.000261,7]
[334205382,1722839257630,-195.517897,0.000261,7]
[334205383,1722839257654,-151.0,0.000261,7]
[334205384,1722839257678,-151.0,0.000261,7]
[334205385,1722839257706,-443.45,0.000261,31]
[334205386,1722839257732,-443.45,0.000261,31]
[334205387,1722839257766,-443.45,0.000261,31]
[334205388,1722839257798,-443.45,0.000261,31]
[334205389,1722839257827,-443.45,0.000261,31]
[334205390,1722839257856,-443.45,0.000261,31]
[334205391,1722839257886,-443.45,0.000261,31]
[334205392,1722839257914,-443.45,0.000261,31]
[334205393,1722839257942,-443.45,0.000261,31]